Workbook

Sheet 환불기준(2024-겨울학기)
A1: 구분 | E1: 청연 계절(3인실) 23박 | F1: 청연 계절(장애인실) 23박 | G1: 청연 계절(장애인실) 23박 *비장애인 사용 | H1: 청연 장기(3인실) 64박 | K1: 계절입사 | L1: 장기입사
A2: 2025-여름학기 | D2: 1박 단가 | E2: 9890 | F2: 12060 | G2: 18660 | H2: 9890 | J2: 입사일 | K2: 2025-06-29 | L2: 2025-06-24
D3: 입사비 | E3: =E2*K4 -> 227470 | F3: =F2*K4 -> 277380 | G3: =K4*G2 -> 429180 | H3: =H2*L4 -> 632960 | J3: 퇴사일 | K3: 2025-07-22 | L3: 2025-08-27
D4: 위약금 | E4: =E3*0.2 -> 45494 | F4: =F3*0.2 -> 55476 | G4: =G3*0.2 -> 85836 | H4: =H3*0.2 -> 126592 | J4: 사용일(박) | K4: 23 | L4: =L3-L2 -> 64
B5: 계절 | C5: 장기 | D5: 위약금 (절상) | E5: =ROUNDDOWN(E4,-1) -> 45490 | F5: 55470 | G5: 85830 | H5: 126590
A6: 장기입사일 | C6: 1 | D6: 2025-06-24 | H6: =H3-H5 -> 506370
C7: 2 | D7: 2025-06-25 | H7: =H6-$H$2 -> 496480
C8: 3 | D8: 2025-06-26 | H8: =H7-$H$2 -> 486590
C9: 4 | D9: 2025-06-27 | H9: 476700
B10: 1 | C10: 5 | D10: 2025-06-28 | H10: 466810
A11: 계절입사일 | B11: 2 | C11: 6 | D11: 2025-06-29 | E11: =E3-E5 -> 181980 | F11: =F3-F5 -> 221910 | G11: =G3-G5 -> 343350 | H11: 456920
B12: 3 | C12: 7 | D12: 2025-06-30 | E12: =E11-$E$2 -> 172090 | F12: =F11-$F$2 -> 209850 | G12: =G11-$G$2 -> 324690 | H12: 447030
B13: 4 | C13: 8 | D13: 2025-07-01 | E13: =E12-$E$2 -> 162200 | F13: 197790 | G13: =G12-$G$2 -> 306030 | H13: 437140
B14: 5 | C14: 9 | D14: 2025-07-02 | E14: =E13-$E$2 -> 152310 | F14: 185730 | G14: 287370 | H14: 427250
B15: 6 | C15: 10 | D15: 2025-07-03 | E15: =E14-$E$2 -> 142420 | F15: 173670 | G15: 268710 | H15: 417360
B16: 7 | C16: 11 | D16: 2025-07-04 | E16: 132530 | F16: 161610 | G16: 250050 | H16: 407470
B17: 8 | C17: 12 | D17: 2025-07-05 | E17: 122640 | F17: 149550 | G17: 231390 | H17: 397580
B18: 9 | C18: 13 | D18: 2025-07-06 | E18: 112750 | F18: 137490 | G18: 212730 | H18: 387690
B19: 10 | C19: 14 | D19: 2025-07-07 | E19: 102860 | F19: 125430 | G19: 194070 | H19: 377800
B20: 11 | C20: 15 | D20: 2025-07-08 | E20: 92970 | F20: 113370 | G20: 175410 | H20: 367910
B21: 12 | C21: 16 | D21: 2025-07-09 | E21: 83080 | F21: 101310 | G21: 156750 | H21: 358020
B22: 13 | C22: 17 | D22: 2025-07-10 | E22: 73190 | F22: 89250 | G22: 138090 | H22: 348130
B23: 14 | C23: 18 | D23: 2025-07-11 | E23: 63300 | F23: 77190 | G23: 119430 | H23: 338240
B24: 15 | C24: 19 | D24: 2025-07-12 | E24: 53410 | F24: 65130 | G24: 100770 | H24: 328350
B25: 16 | C25: 20 | D25: 2025-07-13 | E25: 43520 | F25: 53070 | G25: 82110 | H25: 318460
B26: 17 | C26: 21 | D26: 2025-07-14 | E26: 33630 | F26: 41010 | G26: 63450 | H26: 308570
B27: 18 | C27: 22 | D27: 2025-07-15 | E27: 23740 | F27: 28950 | G27: 44790 | H27: 298680
B28: 19 | C28: 23 | D28: 2025-07-16 | E28: 13850 | F28: 16890 | G28: 26130 | H28: 288790
A29: 계절입사비 환불기한(24박*80%) | B29: 20 | C29: 24 | D29: 2025-07-17 | E29: 3960 | F29: 4830 | G29: 7470 | H29: 278900
B30: 21 | C30: 25 | D30: 2025-07-18 | E30: -5930 | F30: -7230 | G30: -11190 | H30: 269010
B31: 22 | C31: 26 | D31: 2025-07-19 | E31: -15820 | F31: -19290 | G31: -29850 | H31: 259120
B32: 23 | C32: 27 | D32: 2025-07-20 | E32: -25710 | F32: -31350 | G32: -48510 | H32: 249230
C33: 28 | D33: 2025-07-21 | E33: -35600 | F33: -43410 | G33: -67170 | H33: 239340
A34: 계절퇴사일 | C34: 29 | D34: 2025-07-22 | E34: -45490 | F34: -55470 | G34: -85830 | H34: 229450
C35: 30 | D35: 2025-07-23 | E35: -55380 | F35: -67530 | G35: -104490 | H35: 219560
C36: 31 | D36: 2025-07-24 | E36: -65270 | F36: -79590 | G36: -123150 | H36: =H35-$H$2 -> 209670
C37: 32 | D37: 2025-07-25 | E37: -75160 | F37: -91650 | G37: -141810 | H37: 199780
C38: 33 | D38: 2025-07-26 | E38: -85050 | F38: -103710 | G38: -160470 | H38: 189890
C39: 34 | D39: 2025-07-27 | E39: -94940 | F39: -115770 | G39: -179130 | H39: 180000
C40: 35 | D40: 2025-07-28 | E40: -104830 | F40: -127830 | G40: -197790 | H40: 170110
C41: 36 | D41: 2025-07-29 | E41: -114720 | F41: -139890 | G41: -216450 | H41: 160220
C42: 37 | D42: 2025-07-30 | E42: -124610 | F42: -151950 | G42: -235110 | H42: 150330
C43: 38 | D43: 2025-07-31 | E43: -134500 | F43: -164010 | G43: -253770 | H43: 140440
C44: 39 | D44: 2025-08-01 | E44: -144390 | F44: -176070 | G44: -272430 | H44: 130550
C45: 40 | D45: 2025-08-02 | E45: -154280 | F45: -188130 | G45: -291090 | H45: 120660
C46: 41 | D46: 2025-08-03 | E46: -164170 | F46: -200190 | G46: -309750 | H46: 110770
C47: 42 | D47: 2025-08-04 | E47: -174060 | F47: -212250 | G47: -328410 | H47: 100880
C48: 43 | D48: 2025-08-05 | E48: -183950 | F48: -224310 | G48: -347070 | H48: 90990
C49: 44 | D49: 2025-08-06 | E49: -193840 | F49: -236370 | G49: -365730 | H49: 81100
C50: 45 | D50: 2025-08-07 | E50: -203730 | F50: -248430 | G50: -384390 | H50: 71210
C51: 46 | D51: 2025-08-08 | E51: -213620 | F51: -260490 | G51: -403050 | H51: 61320
C52: 47 | D52: 2025-08-09 | E52: -223510 | F52: -272550 | G52: -421710 | H52: 51430
C53: 48 | D53: 2025-08-10 | E53: -233400 | F53: -284610 | G53: -440370 | H53: 41540
C54: 49 | D54: 2025-08-11 | E54: -243290 | F54: -296670 | G54: -459030 | H54: 31650
C55: 50 | D55: 2025-08-12 | E55: -253180 | F55: -308730 | G55: -477690 | H55: 21760
C56: 51 | D56: 2025-08-13 | E56: -263070 | F56: -320790 | G56: -496350 | H56: =H55-$H$2 -> 11870
C57: 52 | D57: 2025-08-14 | E57: -272960 | F57: -332850 | G57: -515010 | H57: 1980
A58: 장기입사비 환불기한(64박*80%) | C58: 53 | D58: 2025-08-15 | E58: -282850 | F58: -344910 | G58: -533670 | H58: -7910
C59: 54 | D59: 2025-08-16 | E59: -292740 | F59: -356970 | G59: -552330 | H59: -17800
C60: 55 | D60: 2025-08-17 | E60: -302630 | F60: -369030 | G60: -570990 | H60: -27690
C61: 56 | D61: 2025-08-18 | E61: -312520 | F61: -381090 | G61: -589650 | H61: -37580
C62: 57 | D62: 2025-08-19 | E62: -322410 | F62: -393150 | G62: -608310 | H62: -47470
C63: 58 | D63: 2025-08-20 | E63: -332300 | F63: -405210 | G63: -626970 | H63: -57360
C64: 59 | D64: 2025-08-21 | E64: -342190 | F64: -417270 | G64: -645630 | H64: -67250
D65: 2025-08-22 | E65: -352080 | F65: -429330 | G65: -664290 | H65: -77140
D66: 2025-08-23 | E66: -361970 | F66: -441390 | G66: -682950 | H66: -87030
D67: 2025-08-24 | E67: -371860 | F67: -453450 | G67: -701610 | H67: -96920
D68: 2025-08-25 | E68: -381750 | F68: -465510 | G68: -720270 | H68: -106810
D69: 2025-08-26 | E69: -391640 | F69: -477570 | G69: -738930 | H69: -116700
A70: 장기퇴사일 | D70: 2025-08-27 | E70: -401530 | F70: -489630 | G70: -757590 | H70: -126590
